fUST/lending_fUST_20250709
["ID","MTS","AMOUNT","RATE_DAILY","PERIOD"]
[370462471,1752030639843,-392.93016327,0.00019452,2]
[370462473,1752030639854,-460.0,0.00019452,2]
[370462475,1752030639864,-460.0,0.00019452,2]
[370462478,1752030639874,-844.48,0.00019452,2]
[370462480,1752030639884,-460.0,0.00019452,2]
[370462482,1752030639894,-460.0,0.00019452,2]
[370462484,1752030639905,-460.0,0.00019452,2]
[370462486,1752030639914,-648.07,0.00019452,2]
[370462488,1752030639924,-460.0,0.00019452,2]
[370462490,1752030639934,-557.04912293,0.00019452,2]
[370462492,1752030639943,-792.68,0.00019452,2]
[370462494,1752030639954,-503.16620001,0.00019452,2]
[370462496,1752030639963,-460.0,0.00019452,2]
[370462498,1752030639975,-540.47,0.00019452,2]
[370462500,1752030639985,-623.43,0.00019452,2]
[370462502,1752030639995,-460.0,0.00019452,2]
[370462504,1752030640005,-460.0,0.00019452,2]
[370462506,1752030640015,-549.05699701,0.00019452,2]
[370462508,1752030640024,-490.56,0.00019452,2]
[370462510,1752030640034,-460.0,0.00019452,2]
[370462512,1752030640044,-460.0,0.00019452,2]
[370462514,1752030640054,-460.0,0.00019452,2]
[370462517,1752030640064,-460.0,0.00019452,2]
[370462519,1752030640074,-460.0,0.00019452,2]
[370462521,1752030640083,-601.1,0.00019452,2]
[370462523,1752030640092,-1963.24,0.00019452,2]
[370462525,1752030640102,-460.0,0.00019452,2]
[370462527,1752030640112,-407.55006154,0.00019452,2]
[370462529,1752030640121,-460.0,0.00019452,2]
[370462531,1752030640130,-460.0,0.00019452,2]
[370462533,1752030640140,-460.0,0.00019452,2]
[370462536,1752030640152,-460.0,0.00019452,2]
[370462538,1752030640163,-1140.04,0.00019452,2]
[370462541,1752030640172,-460.0,0.00019452,2]
[370462543,1752030640181,-460.0,0.00019452,2]
[370462545,1752030640192,-462.18712251,0.00019452,2]
[370462547,1752030640202,-460.0,0.00019452,2]
[370462549,1752030640212,-460.0,0.00019452,2]
[370462551,1752030640222,-908.74181551,0.00019452,2]
[370462555,1752030640247,-349.47499029,0.00019452,2]
[370462557,1752030640259,-51.0231942,0.00019452,2]
[370462559,1752030640268,-460.0,0.00019452,2]
[370462561,1752030640278,-1242.26,0.00019452,2]
[370462563,1752030640289,-568.58,0.00019452,2]
[370462565,1752030640298,-708.77,0.00019452,2]
[370462567,1752030640308,-244.05898662,0.00019452,2]
[370462569,1752030640318,-14.04813565,0.00019452,2]
[370462572,1752030640330,-445.95186435,0.00019452,2]
[370462574,1752030640340,-1761.60753649,0.00019452,2]
[370462576,1752030640352,-49.11246351,0.00019452,2]
[370462578,1752030640362,-460.0,0.00019452,2]
[370462580,1752030640371,-665.57,0.00019452,2]
[370462582,1752030640381,-944.45,0.00019452,2]
[370462584,1752030640393,-460.0,0.00019452,2]
[370462586,1752030640403,-1758.80387442,0.00019452,2]
[370462589,1752030640421,-442.52612558,0.00019452,2]
[370462591,1752030640432,-460.0,0.00019452,2]
[370462593,1752030640442,-460.0,0.00019452,2]
[370462595,1752030640452,-460.0,0.00019452,2]
[370462597,1752030640461,-460.0,0.00019452,2]
[370462599,1752030640472,-460.0,0.00019452,2]
[370462601,1752030640483,-377.58487684,0.00019452,2]
[370462603,1752030640493,-232.04314632,0.00019452,2]
[370462605,1752030640503,-493.89,0.00019452,2]
[370462607,1752030640513,-716.8,0.00019452,2]
[370462609,1752030640522,-460.0,0.00019452,2]
[370462611,1752030640532,-250.5099498,0.00019452,2]
[370462613,1752030640542,-473.07851239,0.00019452,2]
[370462615,1752030640552,-460.0,0.00019452,2]
[370462617,1752030640562,-460.0,0.00019452,2]
[370462619,1752030640573,-460.0,0.00019452,2]
[370462621,1752030640583,-2497.07,0.00019452,2]
[370462623,1752030640597,-460.0,0.00019452,2]
[370462625,1752030640606,-817.54,0.00019452,2]
[370462627,1752030640616,-460.0,0.00019452,2]
[370462629,1752030640626,-460.0,0.00019452,2]
[370462631,1752030640637,-460.0,0.00019452,2]
[370462633,1752030640646,-470.6693537,0.00019452,2]
[370462636,1752030640656,-250.82291399,0.00019452,2]
[370462637,1752030640667,-1321.78,0.00019452,2]
[370462640,1752030640677,-151.0,0.00019507,2]
[370462642,1752030640687,-500.0,0.00019507,2]
[370462644,1752030640696,-151.0,0.00019507,2]
[370462646,1752030640706,-202.03352032,0.00019507,2]
[370462648,1752030640715,-151.0,0.00019507,2]
[370462650,1752030640725,-151.22157252,0.00019507,2]
[370462652,1752030640735,-151.0,0.00019507,2]
[370462654,1752030640745,-500.0,0.00019507,2]
[370462656,1752030640755,-157.75257912,0.00019507,2]
[370462658,1752030640764,-151.0,0.00019507,2]
[370462660,1752030640773,-151.0,0.00019534,2]
[370462662,1752030640783,-500.54104326,0.00019534,2]
[370462664,1752030640792,-151.0,0.00019534,2]
[370462666,1752030640801,-151.0,0.00019534,2]
[370462667,1752030640811,-151.60978335,0.00019534,2]
[370462668,1752030640820,-500.0,0.00019534,2]
[370462669,1752030640829,-151.0,0.00019562,2]
[370462670,1752030640838,-151.0,0.00019562,2]
[370462671,1752030640848,-151.0,0.00019562,2]
[370462672,1752030640857,-209.78734587,0.00019562,2]
[370462673,1752030640867,-198.48264762,0.00019589,2]
[370462674,1752030640876,-247.62234683,0.00019589,2]
[370462675,1752030640885,-281.90042341,0.00019589,2]
[370462676,1752030640895,-253.85503545,0.00019626,2]
[370462677,1752030640906,-214.5447018,0.00019626,2]
[370462678,1752030640916,-500.0,0.00019725,2]
[370462679,1752030640925,-500.0,0.00019725,2]
[370462680,1752030640935,-500.0,0.00019725,2]
[370462681,1752030640944,-500.0,0.00019725,2]
[370462682,1752030640954,-500.0,0.00019725,2]
[370462683,1752030640963,-500.0,0.00019725,2]
[370462684,1752030640973,-500.0,0.00019725,2]
[370462685,1752030640982,-500.0,0.00019725,2]
[370462686,1752030640991,-500.0,0.00019725,2]
[370462687,1752030641002,-439.49027989,0.00019725,2]
[370462688,1752030641012,-500.0,0.00019725,2]
[370462689,1752030641021,-500.0,0.00019725,2]
[370462690,1752030641032,-500.0,0.00019725,2]
[370462691,1752030641042,-500.0,0.00019725,2]
[370462692,1752030641052,-500.0,0.00019725,2]
[370462693,1752030641061,-500.0,0.00019725,2]
[370462695,1752030641071,-500.0,0.00019725,2]
[370462697,1752030641081,-500.0,0.00019725,2]
[370462699,1752030641090,-500.0,0.00019725,2]
[370462701,1752030641099,-500.0,0.00019725,2]
[370462703,1752030641109,-500.0,0.00019725,2]
[370462705,1752030641119,-500.0,0.00019725,2]
[370462707,1752030641128,-266.92440567,0.00019725,2]
[370462709,1752030641137,-500.0,0.00019725,2]
[370462710,1752030641147,-460.0,0.00019726,2]
[370462711,1752030641157,-460.0,0.00019726,2]
[370462712,1752030641167,-153.977317,0.00019726,2]
[370462713,1752030641176,-151.0,0.00019726,2]
[370462714,1752030641186,-460.0,0.00019726,2]
[370462715,1752030641196,-355.66201522,0.00019726,2]
[370462716,1752030641206,-460.0,0.00019726,2]
[370462717,1752030641217,-410.84710506,0.00019726,2]
[370462718,1752030641226,-460.0,0.00019726,2]
[370462719,1752030641237,-460.0,0.00019726,2]
[370462720,1752030641247,-460.0,0.00019726,2]
[370462721,1752030641256,-460.0,0.00019726,2]
[370462722,1752030641266,-466.63132801,0.00019726,2]
[370462723,1752030641276,-460.0,0.00019726,2]
[370462724,1752030641285,-460.0,0.00019726,2]
[370462725,1752030641295,-576.38311803,0.00019726,2]
[370462726,1752030641305,-443.42058949,0.00019726,2]
[370462727,1752030641315,-211.6603477,0.00019726,2]
[370462728,1752030641325,-460.0,0.00019726,2]
[370462729,1752030641334,-460.0,0.00019726,2]
[370462730,1752030641344,-460.0,0.00019726,2]
[370462731,1752030641353,-460.0,0.00019726,2]
[370462732,1752030641363,-460.0,0.00019726,2]
[370462733,1752030641372,-460.0,0.00019726,2]
[370462734,1752030641382,-460.0,0.00019726,2]
[370462735,1752030641392,-460.0,0.00019726,2]
[370462736,1752030641402,-844.48,0.00019726,2]
[370462737,1752030641412,-460.0,0.00019726,2]
[370462738,1752030641425,-460.0,0.00019726,2]
[370462739,1752030641434,-460.0,0.00019726,2]
[370462740,1752030641444,-648.07,0.00019726,2]
[370462741,1752030641620,-460.0,0.00019726,2]
[370462742,1752030641635,-792.68,0.00019726,2]
[370462743,1752030641647,-540.47,0.00019726,2]
[370462744,1752030641659,-623.43,0.00019726,2]
[370462745,1752030641671,-460.0,0.00019726,2]
[370462746,1752030641683,-490.56,0.00019726,2]
[370462747,1752030641695,-460.0,0.00019726,2]
[370462748,1752030641706,-460.0,0.00019726,2]
[370462749,1752030641717,-460.0,0.00019726,2]
[370462750,1752030641727,-460.0,0.00019726,2]
[370462751,1752030641739,-601.1,0.00019726,2]
[370462752,1752030641750,-1963.24,0.00019726,2]
[370462753,1752030641760,-460.0,0.00019726,2]
[370462754,1752030641770,-460.0,0.00019726,2]
[370462755,1752030641779,-460.0,0.00019726,2]
[370462756,1752030641789,-460.0,0.00019726,2]
[370462757,1752030641799,-460.0,0.00019726,2]
[370462758,1752030641809,-1140.04,0.00019726,2]
[370462759,1752030641819,-460.0,0.00019726,2]
[370462760,1752030641829,-520.02136783,0.00019726,2]
[370462761,1752030641839,-460.0,0.00019726,2]
[370462762,1752030641848,-1309.24,0.00019726,2]
[370462763,1752030641858,-460.0,0.00019726,2]
[370462765,1752030641868,-1242.26,0.00019726,2]
[370462767,1752030641878,-568.58,0.00019726,2]
[370462769,1752030641888,-708.77,0.00019726,2]
[370462771,1752030641898,-460.0,0.00019726,2]
[370462773,1752030641907,-1810.72,0.00019726,2]
[370462775,1752030641917,-460.0,0.00019726,2]
[370462777,1752030641927,-665.57,0.00019726,2]
[370462780,1752030641937,-944.45,0.00019726,2]
[370462782,1752030641948,-460.0,0.00019726,2]
[370462783,1752030641957,-2201.33,0.00019726,2]
[370462786,1752030641967,-460.0,0.00019726,2]
[370462787,1752030641977,-460.0,0.00019726,2]
[370462789,1752030641989,-460.0,0.00019726,2]
[370462792,1752030642000,-460.0,0.00019726,2]
[370462794,1752030642012,-460.0,0.00019726,2]
[370462796,1752030642022,-493.89,0.00019726,2]
[370462798,1752030642032,-716.8,0.00019726,2]
[370462800,1752030642042,-460.0,0.00019726,2]
[370462801,1752030642052,-460.0,0.00019726,2]
[370462803,1752030642062,-460.0,0.00019726,2]
[370462805,1752030642072,-2497.07,0.00019726,2]
[370462807,1752030642082,-460.0,0.00019726,2]
[370462809,1752030642091,-817.54,0.00019726,2]
[370462811,1752030642101,-460.0,0.00019726,2]
[370462813,1752030642111,-460.0,0.00019726,2]
[370462815,1752030642121,-460.0,0.00019726,2]
[370462817,1752030642131,-1321.78,0.00019726,2]
[370462819,1752030642141,-500.0,0.00019728,2]
[370462821,1752030642151,-503.19112389,0.00019728,2]
[370462823,1752030642161,-501.29073386,0.00019728,2]
[370462825,1752030642170,-500.0,0.00019728,2]
[370462827,1752030642180,-500.0,0.00019728,2]
[370462829,1752030642190,-500.0,0.00019728,2]
[370462831,1752030642199,-500.0,0.00019728,2]
[370462833,1752030642209,-501.02388313,0.00019728,2]
[370462837,1752030642221,-500.0,0.00019728,2]
[370462838,1752030642233,-500.42033992,0.00019728,2]
[370462841,1752030642243,-501.45291797,0.00019754,2]
[370462842,1752030642252,-207.4,0.00019799,2]
[370462844,1752030642262,-690.642,0.00019799,2]
[370462847,1752030642273,-500.0,0.00019835,2]
[370462849,1752030642283,-716.195754,0.00019854,2]
[370462851,1752030642292,-10590.82092626,0.000199,2]
[370462853,1752030642302,-4192.33583116,0.000199,2]
[370462855,1752030642312,-742.6949969,0.00019909,2]
[370462857,1752030642321,-328.99751484,0.00019956,2]
[370462858,1752030642331,-770.17471178,0.00019964,2]
[370462860,1752030642340,-198.54547979,0.00019973,2]
[370462862,1752030642350,-500.0,0.00019973,2]
[370462865,1752030642360,-300.0,0.00019978,2]
[370462867,1752030642371,-300.0,0.00019978,2]
[370462869,1752030642380,-374.97288028,0.00019978,2]
[370462871,1752030642390,-300.0,0.00019978,2]
[370462873,1752030642400,-300.0,0.00019978,2]
[370462875,1752030642409,-300.0,0.00019978,2]
[370462876,1752030642419,-300.0,0.00019978,2]
[370462878,1752030642428,-330.12308961,0.00019978,2]
[370462880,1752030642438,-25000.0,0.00019978,2]
[370462883,1752030642449,-22827.66514179,0.00019978,2]
[370462885,1752030642459,-96726.43260604,0.0001999,2]
[370462887,1752030642470,-460.0,0.0002,2]
[370462890,1752030642481,-460.0,0.0002,2]
[370462892,1752030642491,-151.0,0.0002,2]
[370462894,1752030642501,-460.0,0.0002,2]
[370462896,1752030642511,-542.45053929,0.0002,2]
[370462898,1752030642521,-462.35713046,0.0002,2]
[370462899,1752030642531,-460.0,0.0002,2]
[370462900,1752030642540,-460.0,0.0002,2]
[370462901,1752030642550,-460.0,0.0002,2]
[370462902,1752030642560,-460.0,0.0002,2]
[370462904,1752030642570,-460.0,0.0002,2]
[370462906,1752030642580,-460.0,0.0002,2]
[370462908,1752030642594,-460.0,0.0002,2]
[370462909,1752030642603,-471.17356046,0.0002,2]
[370462911,1752030642612,-460.0,0.0002,2]
[370462913,1752030642623,-460.0,0.0002,2]
[370462915,1752030642633,-547.31580831,0.0002,2]
[370462917,1752030642642,-844.48,0.0002,2]
[370462919,1752030642652,-460.0,0.0002,2]
[370462921,1752030642661,-460.0,0.0002,2]
[370462923,1752030642671,-460.0,0.0002,2]
[370462925,1752030642681,-648.07,0.0002,2]
[370462927,1752030642691,-460.0,0.0002,2]
[370462929,1752030642700,-792.68,0.0002,2]
[370462931,1752030642709,-540.47,0.0002,2]
[370462933,1752030642719,-623.43,0.0002,2]
[370462935,1752030642730,-490.56,0.0002,2]
[370462937,1752030642740,-460.0,0.0002,2]
[370462939,1752030642749,-460.0,0.0002,2]
[370462941,1752030642759,-460.0,0.0002,2]
[370462943,1752030642769,-460.0,0.0002,2]
[370462945,1752030642779,-601.1,0.0002,2]
[370462947,1752030642788,-1963.24,0.0002,2]
[370462949,1752030642798,-460.0,0.0002,2]
[370462951,1752030642807,-460.0,0.0002,2]
[370462953,1752030642816,-460.0,0.0002,2]
[370462955,1752030642826,-608.49477014,0.0002,2]
[370462957,1752030642835,-460.0,0.0002,2]
[370462959,1752030642845,-1140.04,0.0002,2]
[370462961,1752030642855,-460.0,0.0002,2]
[370462963,1752030642864,-460.0,0.0002,2]
[370462965,1752030642873,-1309.24,0.0002,2]
[370462967,1752030642882,-460.0,0.0002,2]
[370462969,1752030642892,-1242.26,0.0002,2]
[370462971,1752030642902,-568.58,0.0002,2]
[370462973,1752030642912,-708.77,0.0002,2]
[370462975,1752030642922,-359.65,0.0002,2]
[370462977,1752030642931,-1810.72,0.0002,2]
[370462979,1752030642941,-460.0,0.0002,2]
[370462981,1752030642951,-665.57,0.0002,2]
[370462983,1752030642961,-944.45,0.0002,2]
[370462985,1752030642970,-460.0,0.0002,2]
[370462987,1752030642980,-2201.33,0.0002,2]
[370462989,1752030642990,-460.0,0.0002,2]
[370462990,1752030643000,-460.0,0.0002,2]
[370462992,1752030643011,-460.0,0.0002,2]
[370462994,1752030643020,-493.89,0.0002,2]
[370462996,1752030643030,-716.8,0.0002,2]
[370462998,1752030643039,-460.0,0.0002,2]
[370463000,1752030643051,-460.0,0.0002,2]
[370463003,1752030643064,-460.0,0.0002,2]
[370463005,1752030643073,-2497.07,0.0002,2]
[370463007,1752030643083,-460.0,0.0002,2]
[370463009,1752030643092,-817.54,0.0002,2]
[370463011,1752030643102,-460.0,0.0002,2]
[370463013,1752030643112,-460.0,0.0002,2]
[370463014,1752030643121,-475.08973069,0.0002,2]
[370463015,1752030643130,-1321.78,0.0002,2]
[370463016,1752030643140,-798.67117612,0.00020019,2]
[370463017,1752030643149,-300.924213,0.00020023,2]
[370463018,1752030643158,-160.0,0.00020045,2]
[370463019,1752030643168,-214.14293035,0.00020045,2]
[370463020,1752030643177,-215.27775528,0.00020045,2]
[370463021,1752030643186,-160.0,0.00020045,2]
[370463022,1752030643196,-160.0,0.00020045,2]
[370463023,1752030643205,-837.99933892,0.00020045,2]
[370463024,1752030643215,-160.0,0.00020045,2]
[370463025,1752030643224,-848.55005627,0.00020045,2]
[370463027,1752030643236,-230.53906051,0.00020045,2]
[370463029,1752030643246,-160.0,0.00020045,2]
[370463031,1752030643256,-12589.12013084,0.00020045,2]
[370463033,1752030643266,-960.99548709,0.00020074,2]
[370463035,1752030643280,-4192.3358309,0.00020107,2]
[370463037,1752030643289,-300.924213,0.00020119,2]
[370463039,1752030643298,-431.84283,0.00020187,2]
[370463041,1752030643308,-253.85503544,0.00020195,2]
[370463043,1752030643318,-300.924213,0.00020215,2]
[370463045,1752030643329,-151.0,0.00020268,2]
[370463047,1752030643339,-460.0,0.00020273,2]
[370463049,1752030643349,-460.0,0.00020273,2]
[370463051,1752030643359,-460.0,0.00020273,2]
[370463053,1752030643369,-460.0,0.00020273,2]
[370463055,1752030643379,-460.0,0.00020273,2]
[370463057,1752030643389,-460.0,0.00020273,2]
[370463060,1752030643399,-460.0,0.00020273,2]
[370463062,1752030643409,-460.0,0.00020273,2]
[370463064,1752030643419,-340.16458605,0.00020273,2]
[370463066,1752030643428,-844.48,0.00020273,2]
[370463067,1752030643438,-460.0,0.00020273,2]
[370463070,1752030643448,-460.0,0.00020273,2]
[370463072,1752030643458,-460.0,0.00020273,2]
[370463074,1752030643468,-648.07,0.00020273,2]
[370463076,1752030643477,-460.0,0.00020273,2]
[370463078,1752030643488,-792.68,0.00020273,2]
[370463080,1752030643498,-540.47,0.00020273,2]
[370463082,1752030643507,-623.43,0.00020273,2]
[370463084,1752030643517,-490.56,0.00020273,2]
[370463086,1752030643526,-460.0,0.00020273,2]
[370463088,1752030643536,-460.0,0.00020273,2]
[370463090,1752030643545,-460.0,0.00020273,2]
[370463092,1752030643555,-460.0,0.00020273,2]
[370463115,1752030643777,-601.1,0.00020273,2]
[370463117,1752030643786,-1963.24,0.00020273,2]
[370463119,1752030643797,-460.0,0.00020273,2]
[370463121,1752030643807,-460.0,0.00020273,2]
[370463123,1752030643816,-460.0,0.00020273,2]
[370463125,1752030643825,-1140.04,0.00020273,2]
[370463127,1752030643834,-460.0,0.00020273,2]
[370463129,1752030643844,-1309.24,0.00020273,2]
[370463131,1752030643854,-297.89662517,0.00020273,2]
[370463133,1752030643864,-1242.26,0.00020273,2]
[370463135,1752030643873,-568.58,0.00020273,2]
[370463137,1752030643883,-708.77,0.00020273,2]
[370463139,1752030643893,-1810.72,0.00020273,2]
[370463141,1752030643902,-417.34,0.00020273,2]
[370463143,1752030643912,-665.57,0.00020273,2]
[370463145,1752030643921,-944.45,0.00020273,2]
[370463147,1752030643931,-460.0,0.00020273,2]
[370463149,1752030643940,-2201.33,0.00020273,2]
[370463151,1752030643949,-460.0,0.00020273,2]
[370463153,1752030643958,-460.0,0.00020273,2]
[370463155,1752030643968,-460.0,0.00020273,2]
[370463157,1752030643978,-493.89,0.00020273,2]
[370463159,1752030643989,-716.8,0.00020273,2]
[370463161,1752030643998,-460.0,0.00020273,2]
[370463163,1752030644012,-460.0,0.00020273,2]
[370463165,1752030644022,-2497.07,0.00020273,2]
[370463166,1752030644031,-516.34907766,0.00020273,2]
[370463168,1752030644040,-191.90155478,0.00020273,2]
[370463170,1752030644050,-817.54,0.00020273,2]
[370463172,1752030644060,-460.0,0.00020273,2]
[370463175,1752030644070,-460.0,0.00020273,2]
[370463176,1752030644080,-1321.78,0.00020273,2]
[370463178,1752030644090,-505.96527619,0.00020276,2]
[370463180,1752030644100,-500.84488849,0.00020276,2]
[370463183,1752030644110,-1008.20759223,0.00020276,2]
[370463184,1752030644119,-1000.0,0.00020276,2]
[370463186,1752030644129,-1000.0,0.00020276,2]
[370463188,1752030644140,-1000.0,0.00020276,2]
[370463190,1752030644150,-300.924213,0.00020311,2]
[370463192,1752030644159,-4192.3358309,0.00020314,3]
[370463194,1752030644169,-300.924213,0.00020406,2]
[370463197,1752030644190,-151.0,0.000205,4]
[370463200,1752030644201,-300.924213,0.00020502,2]
[370463202,1752030644212,-1036.93213407,0.00020521,2]
[370463204,1752030644222,-848.55005627,0.00020521,3]
[370463206,1752030644231,-4192.3358309,0.00020521,3]
[370463208,1752030644241,-151.0,0.00020542,2]
[370463210,1752030644252,-151.0,0.00020542,2]
[370463212,1752030644262,-460.0,0.00020547,2]
[370463214,1752030644271,-460.0,0.00020547,2]
[370463216,1752030644282,-460.0,0.00020547,2]
[370463218,1752030644292,-460.0,0.00020547,2]
[370463220,1752030644302,-460.0,0.00020547,2]
[370463222,1752030644312,-460.0,0.00020547,2]
[370463224,1752030644322,-261.77515466,0.00020547,2]
[370463226,1752030644333,-460.0,0.00020547,2]
[370463228,1752030644343,-844.48,0.00020547,2]
[370463230,1752030644352,-460.0,0.00020547,2]
[370463232,1752030644362,-460.0,0.00020547,2]
[370463234,1752030644372,-460.0,0.00020547,2]
[370463236,1752030644382,-648.07,0.00020547,2]
[370463238,1752030644393,-395.85884626,0.00020547,2]
[370463240,1752030644402,-792.68,0.00020547,2]
[370463242,1752030644412,-540.47,0.00020547,2]
[370463244,1752030644423,-623.43,0.00020547,2]
[370463246,1752030644434,-490.56,0.00020547,2]
[370463248,1752030644444,-460.0,0.00020547,2]
[370463250,1752030644454,-460.0,0.00020547,2]
[370463252,1752030644464,-460.0,0.00020547,2]
[370463254,1752030644474,-460.0,0.00020547,2]
[370463256,1752030644484,-601.1,0.00020547,2]
[370463258,1752030644495,-1963.24,0.00020547,2]
[370463260,1752030644505,-460.0,0.00020547,2]
[370463263,1752030644515,-460.0,0.00020547,2]
[370463265,1752030644525,-460.0,0.00020547,2]
[370463267,1752030644535,-1140.04,0.00020547,2]
[370463269,1752030644545,-460.0,0.00020547,2]
[370463271,1752030644554,-1309.24,0.00020547,2]
[370463273,1752030644564,-1242.26,0.00020547,2]
[370463275,1752030644573,-568.58,0.00020547,2]
[370463277,1752030644583,-708.77,0.00020547,2]
[370463279,1752030644597,-1810.72,0.00020547,2]
[370463281,1752030644617,-665.57,0.00020547,2]
[370463283,1752030644627,-944.45,0.00020547,2]
[370463285,1752030644638,-460.0,0.00020547,2]
[370463287,1752030644647,-2201.33,0.00020547,2]
[370463289,1752030644657,-460.0,0.00020547,2]
[370463291,1752030644668,-460.0,0.00020547,2]
[370463293,1752030644679,-460.0,0.00020547,2]
[370463295,1752030644688,-493.89,0.00020547,2]
[370463297,1752030644698,-716.8,0.00020547,2]
[370463299,1752030644707,-460.0,0.00020547,2]
[370463301,1752030644717,-460.0,0.00020547,2]
[370463303,1752030644727,-2497.07,0.00020547,2]
[370463305,1752030644738,-817.54,0.00020547,2]
[370463307,1752030644747,-460.0,0.00020547,2]
[370463309,1752030644757,-460.0,0.00020547,2]
[370463311,1752030644767,-1321.78,0.00020547,2]
[370463313,1752030644776,-300.924213,0.00020598,2]
[370463315,1752030644786,-5295.78,0.000206,2]
[370463317,1752030644796,-300.924213,0.00020694,2]
[370463319,1752030644807,-151.0,0.00020721,2]
[370463322,1752030644826,-151.0,0.00020721,2]
[370463324,1752030644836,-4192.3358309,0.00020728,3]
[370463326,1752030644846,-963.525,0.00020761,2]
[370463328,1752030644855,-253.85503544,0.00020763,2]
[370463330,1752030644865,-300.924213,0.0002079,2]
[370463332,1752030644875,-151.0,0.000208,3]
[370463334,1752030644885,-752.38,0.00020812,3]
[370463336,1752030644894,-376.2,0.00020812,3]
[370463338,1752030644904,-460.0,0.00020821,2]
[370463340,1752030644914,-460.0,0.00020821,2]
[370463342,1752030644925,-460.0,0.00020821,2]
[370463344,1752030644935,-455.04437743,0.00020821,2]
[370463346,1752030644945,-460.0,0.00020821,2]
[370463348,1752030644955,-460.0,0.00020821,2]
[370463350,1752030644964,-460.0,0.00020821,2]
[370463368,1752030645142,-844.48,0.00020821,2]
[370463370,1752030645156,-499.27125912,0.00020821,2]
[370463372,1752030645166,-460.0,0.00020821,2]
[370463374,1752030645176,-460.0,0.00020821,2]
[370463376,1752030645186,-648.07,0.00020821,2]
[370463378,1752030645195,-792.68,0.00020821,2]
[370463380,1752030645204,-540.47,0.00020821,2]
[370463381,1752030645214,-623.43,0.00020821,2]
[370463383,1752030645225,-490.56,0.00020821,2]
[370463386,1752030645235,-460.0,0.00020821,2]
[370463388,1752030645245,-460.0,0.00020821,2]
[370463390,1752030645255,-460.0,0.00020821,2]
[370463392,1752030645264,-460.0,0.00020821,2]
[370463394,1752030645274,-601.1,0.00020821,2]
[370463396,1752030645284,-1963.24,0.00020821,2]
[370463398,1752030645294,-460.0,0.00020821,2]
[370463400,1752030645303,-460.0,0.00020821,2]
[370463401,1752030645314,-460.0,0.00020821,2]
[370463403,1752030645323,-1140.04,0.00020821,2]
[370463405,1752030645333,-460.0,0.00020821,2]
[370463407,1752030645342,-1309.24,0.00020821,2]
[370463409,1752030645352,-1242.26,0.00020821,2]
[370463411,1752030645362,-568.58,0.00020821,2]
[370463413,1752030645371,-708.77,0.00020821,2]
[370463415,1752030645382,-1810.72,0.00020821,2]
[370463417,1752030645394,-665.57,0.00020821,2]
[370463419,1752030645404,-944.45,0.00020821,2]
[370463421,1752030645414,-460.0,0.00020821,2]
[370463423,1752030645425,-2201.33,0.00020821,2]